fUSD/lending_fUSD_20250623
["ID","MTS","AMOUNT","RATE_DAILY","PERIOD"]
[367251328,1750716652978,-500.0,0.00021999,2]
[367251329,1750716652987,-454.0419375,0.00021999,2]
[367251330,1750716652996,-500.0,0.00021999,2]
[367251331,1750716653006,-500.0,0.00021999,2]
[367251332,1750716653015,-458.23207721,0.00021999,2]
[367251333,1750716653024,-500.0,0.00021999,2]
[367251334,1750716653034,-150.0,0.00021999,2]
[367251335,1750716653043,-150.0,0.00021999,2]
[367251336,1750716653052,-500.0,0.00021999,2]
[367251337,1750716653062,-500.0,0.00021999,2]
[367251338,1750716653071,-500.0,0.00021999,2]
[367251339,1750716653080,-150.0,0.00021999,2]
[367251340,1750716653090,-500.0,0.00021999,2]
[367251341,1750716653100,-500.0,0.00021999,2]
[367251342,1750716653109,-8230.56,0.00022,2]
[367251343,1750716653119,-3427.85161566,0.00022,6]
[367251344,1750716653128,-3427.8516155,0.00022,6]
[367251345,1750716653140,-500.0,0.00022027,2]
[367251346,1750716653150,-500.0,0.00022027,2]
[367251347,1750716653159,-500.0,0.00022027,2]
[367251348,1750716653169,-191.32683798,0.00022027,2]
[367251349,1750716653178,-151.04634641,0.00022027,2]
[367251350,1750716653188,-261.64149646,0.00022027,2]
[367251351,1750716653198,-500.0,0.00022027,2]
[367251352,1750716653207,-500.0,0.00022027,2]
[367251353,1750716653217,-500.0,0.00022027,2]
[367251354,1750716653227,-154.98588961,0.00022027,2]
[367251355,1750716653236,-579.192228,0.00022027,2]
[367251356,1750716653246,-500.0,0.00022027,2]
[367251357,1750716653255,-720.0,0.00022028,2]
[367251358,1750716653265,-150.0,0.00022038,2]
[367251359,1750716653274,-168.0,0.00022041,2]
[367251360,1750716653284,-168.0,0.00022047,2]
[367251361,1750716653294,-500.0,0.00022054,2]
[367251362,1750716653303,-500.0,0.00022054,2]
[367251363,1750716653312,-500.0,0.00022054,2]
[367251364,1750716653321,-500.0,0.00022054,2]
[367251365,1750716653331,-583.17293299,0.00022054,2]
[367251366,1750716653341,-500.0,0.00022054,2]
[367251367,1750716653350,-3427.8516155,0.00022072,6]
[367251368,1750716653360,-500.0,0.00022081,2]
[367251369,1750716653373,-500.0,0.00022081,2]
[367251370,1750716653385,-425.9494065,0.00022081,2]
[367251371,1750716653395,-500.0,0.00022081,2]
[367251372,1750716653404,-500.0,0.00022081,2]
[367251373,1750716653414,-500.0,0.00022109,2]
[367251374,1750716653423,-234.91528428,0.00022109,2]
[367251375,1750716653433,-381.97728198,0.00022109,2]
[367251376,1750716653442,-500.0,0.00022109,2]
[367251377,1750716653451,-8597.46470426,0.00022114,2]
[367251378,1750716653460,-168.0,0.00022126,2]
[367251379,1750716653469,-200.0,0.00022136,2]
[367251380,1750716653480,-200.0,0.00022136,2]
[367251381,1750716653489,-500.0,0.00022136,2]
[367251382,1750716653502,-500.0,0.00022136,2]
[367251383,1750716653510,-500.0,0.00022164,2]
[367251384,1750716653520,-500.0,0.00022164,2]
[367251385,1750716653529,-1000.0,0.00022165,2]
[367251386,1750716653538,-500.0,0.00022173,2]
[367251387,1750716653547,-500.0,0.00022173,2]
[367251388,1750716653556,-156.587,0.00022189,2]
[367251389,1750716653565,-201.61635663,0.00022189,2]
[367251390,1750716653574,-215.0738,0.00022189,2]
[367251391,1750716653583,-500.0,0.0002219,2]
[367251392,1750716653593,-500.0,0.0002219,2]
[367251393,1750716653602,-500.0,0.0002219,2]
[367251394,1750716653611,-668.70809727,0.0002219,2]
[367251395,1750716653621,-300.0,0.0002219,2]
[367251396,1750716653631,-500.0,0.00022191,2]
[367251397,1750716653643,-490.0,0.00022191,2]
[367251398,1750716653653,-490.0,0.00022191,2]
[367251399,1750716653666,-490.0,0.00022191,2]
[367251400,1750716653675,-630.69,0.00022191,2]
[367251401,1750716653686,-490.0,0.00022191,2]
[367251402,1750716653695,-490.0,0.00022191,2]
[367251403,1750716653704,-490.0,0.00022191,2]
[367251404,1750716653714,-490.0,0.00022191,2]
[367251405,1750716653723,-563.46,0.00022191,2]
[367251406,1750716653732,-490.0,0.00022191,2]
[367251407,1750716653742,-780.21,0.00022191,2]
[367251408,1750716653751,-490.0,0.00022191,2]
[367251409,1750716653761,-490.0,0.00022191,2]
[367251410,1750716653770,-490.0,0.00022191,2]
[367251411,1750716653780,-201.89567906,0.00022191,2]
[367251412,1750716653790,-753.72,0.00022191,2]
[367251413,1750716653799,-803.48,0.00022191,2]
[367251414,1750716653808,-490.0,0.00022191,2]
[367251415,1750716653817,-413.07940181,0.00022191,2]
[367251416,1750716653826,-490.0,0.00022191,2]
[367251417,1750716653836,-490.0,0.00022191,2]
[367251418,1750716653845,-647.25,0.00022191,2]
[367251419,1750716653855,-490.0,0.00022191,2]
[367251420,1750716653864,-490.0,0.00022191,2]
[367251421,1750716653873,-490.0,0.00022191,2]
[367251422,1750716653883,-490.0,0.00022191,2]
[367251423,1750716653898,-490.0,0.00022191,2]
[367251424,1750716653908,-361.19345972,0.00022191,2]
[367251425,1750716653919,-490.0,0.00022191,2]
[367251426,1750716653929,-490.0,0.00022191,2]
[367251427,1750716653938,-490.0,0.00022191,2]
[367251428,1750716653948,-517.36,0.00022191,2]
[367251429,1750716653958,-490.0,0.00022191,2]
[367251430,1750716653969,-490.0,0.00022191,2]
[367251431,1750716653979,-509.4,0.00022191,2]
[367251432,1750716653988,-578.82,0.00022191,2]
[367251433,1750716653998,-490.0,0.00022191,2]
[367251434,1750716654008,-490.0,0.00022191,2]
[367251435,1750716654018,-490.0,0.00022191,2]
[367251436,1750716654028,-490.0,0.00022191,2]
[367251437,1750716654038,-490.0,0.00022191,2]
[367251438,1750716654047,-490.0,0.00022191,2]
[367251439,1750716654057,-490.0,0.00022191,2]
[367251440,1750716654068,-632.16,0.00022191,2]
[367251441,1750716654077,-490.0,0.00022191,2]
[367251442,1750716654087,-500.92999492,0.00022191,2]
[367251443,1750716654096,-490.0,0.00022191,2]
[367251444,1750716654106,-490.0,0.00022191,2]
[367251445,1750716654116,-667.39,0.00022191,2]
[367251446,1750716654126,-985.54,0.00022191,2]
[367251447,1750716654139,-687.98,0.00022191,2]
[367251448,1750716654149,-659.33,0.00022191,2]
[367251449,1750716654159,-667.22,0.00022191,2]
[367251450,1750716654168,-490.0,0.00022191,2]
[367251451,1750716654178,-490.0,0.00022191,2]
[367251452,1750716654188,-490.0,0.00022191,2]
[367251453,1750716654197,-548.73,0.00022191,2]
[367251454,1750716654207,-490.0,0.00022191,2]
[367251455,1750716654216,-490.0,0.00022191,2]
[367251456,1750716654226,-490.0,0.00022191,2]
[367251457,1750716654235,-490.0,0.00022191,2]
[367251458,1750716654245,-490.0,0.00022191,2]
[367251459,1750716654255,-490.0,0.00022191,2]
[367251460,1750716654264,-490.0,0.00022191,2]
[367251461,1750716654274,-490.0,0.00022191,2]
[367251462,1750716654283,-490.0,0.00022191,2]
[367251463,1750716654292,-300.0,0.00022191,2]
[367251464,1750716654301,-510.14,0.00022191,2]
[367251465,1750716654310,-506.47,0.00022191,2]
[367251466,1750716654319,-568.52,0.00022191,2]
[367251467,1750716654328,-849.42,0.00022191,2]
[367251468,1750716654338,-587.48,0.00022191,2]
[367251469,1750716654347,-490.0,0.00022191,2]
[367251470,1750716654357,-490.0,0.00022191,2]
[367251471,1750716654367,-490.0,0.00022191,2]
[367251472,1750716654376,-736.18,0.00022191,2]
[367251473,1750716654388,-704.94,0.00022191,2]
[367251474,1750716654397,-490.0,0.00022191,2]
[367251475,1750716654407,-490.0,0.00022191,2]
[367251476,1750716654416,-490.0,0.00022191,2]
[367251477,1750716654426,-490.0,0.00022191,2]
[367251478,1750716654435,-906.29,0.00022191,2]
[367251479,1750716654444,-585.37,0.00022191,2]
[367251480,1750716654454,-490.0,0.00022191,2]
[367251481,1750716654463,-490.0,0.00022191,2]
[367251482,1750716654472,-490.0,0.00022191,2]
[367251483,1750716654481,-679.64,0.00022191,2]
[367251484,1750716654491,-490.0,0.00022191,2]
[367251485,1750716654501,-490.0,0.00022191,2]
[367251486,1750716654510,-634.1,0.00022191,2]
[367251487,1750716654520,-490.0,0.00022191,2]
[367251488,1750716654529,-490.0,0.00022191,2]
[367251489,1750716654539,-490.0,0.00022191,2]
[367251490,1750716654548,-490.0,0.00022191,2]
[367251491,1750716654557,-490.0,0.00022191,2]
[367251492,1750716654567,-490.0,0.00022191,2]
[367251493,1750716654576,-490.0,0.00022191,2]
[367251494,1750716654585,-868.08,0.00022191,2]
[367251495,1750716654595,-490.0,0.00022191,2]
[367251496,1750716654604,-490.0,0.00022191,2]
[367251497,1750716654613,-490.0,0.00022191,2]
[367251498,1750716654623,-731.96,0.00022191,2]
[367251499,1750716654633,-490.0,0.00022191,2]
[367251500,1750716654649,-546.9,0.00022191,2]
[367251501,1750716654660,-490.0,0.00022191,2]
[367251502,1750716654670,-490.0,0.00022191,2]
[367251503,1750716654679,-490.0,0.00022191,2]
[367251504,1750716654691,-490.0,0.00022191,2]
[367251505,1750716654700,-490.0,0.00022191,2]
[367251506,1750716654710,-1263.18,0.00022191,2]
[367251507,1750716654720,-490.0,0.00022191,2]
[367251508,1750716654729,-572.02,0.00022191,2]
[367251509,1750716654739,-490.0,0.00022191,2]
[367251510,1750716654750,-490.0,0.00022191,2]
[367251511,1750716654760,-490.0,0.00022191,2]
[367251512,1750716654769,-490.0,0.00022191,2]
[367251513,1750716654778,-490.0,0.00022191,2]
[367251514,1750716654789,-684.33,0.00022191,2]
[367251515,1750716654799,-907.85,0.00022191,2]
[367251516,1750716654808,-490.0,0.00022191,2]
[367251517,1750716654818,-490.0,0.00022191,2]
[367251518,1750716654829,-250.0,0.00022191,2]
[367251519,1750716654839,-490.0,0.00022191,2]
[367251520,1750716654848,-689.15,0.00022191,2]
[367251521,1750716654859,-500.0,0.00022191,2]
[367251522,1750716654869,-490.0,0.00022191,2]
[367251523,1750716654879,-490.0,0.00022191,2]
[367251524,1750716654892,-490.0,0.00022191,2]
[367251525,1750716654901,-680.89,0.00022191,2]
[367251526,1750716654910,-898.43,0.00022191,2]
[367251527,1750716654920,-534.48,0.00022191,2]
[367251528,1750716654930,-813.42,0.00022191,2]
[367251529,1750716654940,-490.0,0.00022191,2]
[367251530,1750716654950,-636.28,0.00022191,2]
[367251531,1750716654960,-221.1399724,0.00022191,2]
[367251532,1750716655068,-490.0,0.00022191,2]
[367251533,1750716655119,-490.0,0.00022191,2]
[367251534,1750716655130,-624.6,0.00022191,2]
[367251535,1750716655142,-490.0,0.00022191,2]
[367251536,1750716655151,-490.0,0.00022191,2]
[367251537,1750716655162,-490.0,0.00022191,2]
[367251538,1750716655172,-490.0,0.00022191,2]
[367251539,1750716655182,-1120.25,0.00022191,2]
[367251540,1750716655192,-490.0,0.00022191,2]
[367251541,1750716655202,-490.0,0.00022191,2]
[367251542,1750716655212,-891.13,0.00022191,2]
[367251543,1750716655222,-644.99,0.00022191,2]
[367251544,1750716655232,-889.82,0.00022191,2]
[367251545,1750716655242,-490.0,0.00022191,2]
[367251546,1750716655252,-490.0,0.00022191,2]
[367251547,1750716655262,-490.0,0.00022191,2]
[367251548,1750716655271,-868.41,0.00022191,2]
[367251549,1750716655281,-1377.2,0.00022191,2]
[367251550,1750716655291,-495.88,0.00022191,2]
[367251551,1750716655301,-490.0,0.00022191,2]
[367251552,1750716655311,-490.0,0.00022191,2]
[367251553,1750716655320,-490.0,0.00022191,2]
[367251554,1750716655330,-745.19,0.00022191,2]
[367251555,1750716655340,-610.64,0.00022191,2]
[367251556,1750716655350,-490.0,0.00022191,2]
[367251557,1750716655359,-490.0,0.00022191,2]
[367251558,1750716655369,-943.84,0.00022191,2]
[367251559,1750716655378,-602.03,0.00022191,2]
[367251560,1750716655390,-543.99,0.00022191,2]
[367251561,1750716655400,-490.0,0.00022191,2]
[367251562,1750716655410,-1771.19,0.00022191,2]
[367251563,1750716655419,-490.0,0.00022191,2]
[367251564,1750716655429,-490.0,0.00022191,2]
[367251565,1750716655439,-735.04,0.00022191,2]
[367251566,1750716655448,-490.0,0.00022191,2]
[367251567,1750716655459,-490.0,0.00022191,2]
[367251568,1750716655469,-974.25,0.00022191,2]
[367251569,1750716655478,-630.35,0.00022191,2]
[367251570,1750716655488,-542.42,0.00022191,2]
[367251571,1750716655498,-490.0,0.00022191,2]
[367251572,1750716655507,-231.28,0.00022191,2]
[367251573,1750716655517,-1092.49,0.00022191,2]
[367251574,1750716655527,-404.11875809,0.00022191,2]
[367251575,1750716655536,-490.0,0.00022191,2]
[367251576,1750716655546,-490.0,0.00022191,2]
[367251577,1750716655555,-490.0,0.00022191,2]
[367251578,1750716655565,-490.0,0.00022191,2]
[367251579,1750716655574,-490.0,0.00022191,2]
[367251580,1750716655584,-640.78,0.00022191,2]
[367251581,1750716655593,-490.0,0.00022191,2]
[367251582,1750716655604,-490.0,0.00022191,2]
[367251583,1750716655613,-213.89330049,0.00022191,2]
[367251584,1750716655623,-490.0,0.00022191,2]
[367251585,1750716655632,-965.32,0.00022191,2]
[367251586,1750716655649,-968.83,0.00022191,2]
[367251587,1750716655660,-490.0,0.00022191,2]
[367251588,1750716655671,-490.0,0.00022191,2]
[367251589,1750716655680,-737.86,0.00022191,2]
[367251590,1750716655690,-605.78,0.00022191,2]
[367251591,1750716655700,-490.0,0.00022191,2]
[367251592,1750716655710,-490.0,0.00022191,2]
[367251593,1750716655720,-490.0,0.00022191,2]
[367251594,1750716655729,-806.84,0.00022191,2]
[367251595,1750716655740,-490.0,0.00022191,2]
[367251596,1750716655751,-490.0,0.00022191,2]
[367251597,1750716655760,-490.0,0.00022191,2]
[367251598,1750716655770,-490.0,0.00022191,2]
[367251599,1750716655780,-490.0,0.00022191,2]
[367251600,1750716655790,-490.0,0.00022191,2]
[367251601,1750716655799,-490.0,0.00022191,2]
[367251602,1750716655809,-490.0,0.00022191,2]
[367251603,1750716655819,-516.84,0.00022191,2]
[367251604,1750716655829,-1077.565286,0.00022191,2]
[367251605,1750716655839,-822.71,0.00022191,2]
[367251606,1750716655849,-583.46,0.00022191,2]
[367251607,1750716655859,-490.0,0.00022191,2]
[367251608,1750716655868,-490.0,0.00022191,2]
[367251609,1750716655878,-490.0,0.00022191,2]
[367251610,1750716655892,-490.0,0.00022191,2]
[367251611,1750716655902,-1698.97,0.00022191,2]
[367251612,1750716655912,-490.0,0.00022191,2]
[367251613,1750716655922,-878.35,0.00022191,2]
[367251614,1750716655932,-490.0,0.00022191,2]
[367251615,1750716655942,-524.39,0.00022191,2]
[367251616,1750716655952,-490.0,0.00022191,2]
[367251617,1750716655962,-490.0,0.00022191,2]
[367251618,1750716655972,-490.0,0.00022191,2]
[367251619,1750716655982,-1108.34,0.00022191,2]
[367251620,1750716655992,-490.0,0.00022191,2]
[367251621,1750716656002,-490.0,0.00022191,2]
[367251622,1750716656012,-490.0,0.00022191,2]
[367251623,1750716656022,-490.0,0.00022191,2]
[367251624,1750716656032,-1305.53,0.00022191,2]
[367251625,1750716656042,-490.0,0.00022191,2]
[367251626,1750716656051,-621.785509,0.00022191,2]
[367251627,1750716656061,-1000.0,0.00022191,2]
[367251628,1750716656071,-652.83,0.00022191,2]
[367251629,1750716656081,-490.0,0.00022191,2]
[367251630,1750716656090,-408.87550557,0.00022191,2]
[367251631,1750716656100,-728.59,0.00022191,2]
[367251632,1750716656110,-490.0,0.00022191,2]
[367251633,1750716656120,-490.0,0.00022191,2]
[367251634,1750716656130,-501.08,0.00022191,2]
[367251635,1750716656142,-626.7,0.00022191,2]
[367251636,1750716656153,-490.0,0.00022191,2]
[367251637,1750716656165,-490.0,0.00022191,2]
[367251638,1750716656176,-490.0,0.00022191,2]
[367251639,1750716656191,-517.06,0.00022191,2]
[367251640,1750716656207,-767.77,0.00022191,2]
[367251641,1750716656219,-519.64,0.00022191,2]
[367251642,1750716656228,-2314.037933,0.00022191,2]
[367251643,1750716656237,-490.0,0.00022191,2]
[367251644,1750716656247,-490.0,0.00022191,2]
[367251645,1750716656256,-490.0,0.00022191,2]
[367251646,1750716656265,-1224.01,0.00022191,2]
[367251647,1750716656274,-490.0,0.00022191,2]
[367251648,1750716656284,-490.0,0.00022191,2]
[367251649,1750716656293,-490.0,0.00022191,2]
[367251650,1750716656302,-490.0,0.00022191,2]
[367251651,1750716656312,-490.0,0.00022191,2]
[367251652,1750716656321,-523.95,0.00022191,2]
[367251653,1750716656330,-490.0,0.00022191,2]
[367251654,1750716656340,-1180.18,0.00022191,2]
[367251655,1750716656350,-490.0,0.00022191,2]
[367251656,1750716656360,-490.0,0.00022191,2]
[367251657,1750716656369,-490.0,0.00022191,2]
[367251658,1750716656378,-595.23773875,0.00022191,2]
[367251659,1750716656388,-925.57,0.00022191,2]
[367251660,1750716656400,-490.0,0.00022191,2]
[367251661,1750716656410,-774.2,0.00022191,2]
[367251662,1750716656420,-510.96,0.00022191,2]
[367251663,1750716656430,-733.78,0.00022191,2]
[367251664,1750716656439,-490.0,0.00022191,2]
[367251665,1750716656449,-490.0,0.00022191,2]
[367251666,1750716656459,-490.0,0.00022191,2]
[367251667,1750716656468,-490.0,0.00022191,2]
[367251668,1750716656478,-490.0,0.00022191,2]
[367251669,1750716656488,-1340.55,0.00022191,2]
[367251670,1750716656497,-490.0,0.00022191,2]
[367251671,1750716656507,-490.0,0.00022191,2]
[367251672,1750716656516,-983.15,0.00022191,2]
[367251673,1750716656526,-490.0,0.00022191,2]
[367251674,1750716656536,-490.0,0.00022191,2]
[367251675,1750716656545,-490.58,0.00022191,2]
[367251676,1750716656555,-1270.66,0.00022191,2]
[367251677,1750716656564,-490.0,0.00022191,2]
[367251678,1750716656574,-1595.75,0.00022191,2]
[367251679,1750716656584,-490.0,0.00022191,2]
[367251680,1750716656594,-490.0,0.00022191,2]
[367251681,1750716656603,-490.0,0.00022191,2]
[367251682,1750716656614,-750.28,0.00022191,2]
[367251683,1750716656623,-490.0,0.00022191,2]
[367251684,1750716656633,-490.0,0.00022191,2]
[367251685,1750716656649,-871.05,0.00022191,2]
[367251686,1750716656659,-1692.71,0.00022191,2]
[367251687,1750716656669,-602.09,0.00022191,2]
[367251688,1750716656679,-490.0,0.00022191,2]
[367251689,1750716656689,-773.37,0.00022191,2]
[367251690,1750716656699,-490.0,0.00022191,2]
[367251691,1750716656709,-490.0,0.00022191,2]
[367251692,1750716656719,-352.06974144,0.00022191,2]
[367251693,1750716656731,-490.0,0.00022191,2]
[367251694,1750716656740,-554.5,0.00022191,2]
[367251695,1750716656750,-1204.17,0.00022191,2]
[367251696,1750716656760,-490.0,0.00022191,2]
[367251697,1750716656769,-490.0,0.00022191,2]
[367251698,1750716656779,-490.0,0.00022191,2]
[367251699,1750716656789,-490.0,0.00022191,2]
[367251700,1750716656798,-816.53,0.00022191,2]
[367251701,1750716656808,-490.0,0.00022191,2]
[367251702,1750716656818,-326.11702884,0.00022191,2]
[367251703,1750716656828,-648.86,0.00022191,2]
[367251704,1750716656837,-490.0,0.00022191,2]
[367251705,1750716656847,-490.0,0.00022191,2]
[367251706,1750716656856,-490.0,0.00022191,2]
[367251707,1750716656866,-369.34582861,0.00022191,2]
[367251708,1750716656876,-490.0,0.00022191,2]
[367251709,1750716656886,-529.7,0.00022191,2]
[367251710,1750716656899,-657.22,0.00022191,2]
[367251711,1750716656909,-711.86,0.00022191,2]
[367251712,1750716656919,-490.0,0.00022191,2]
[367251713,1750716656929,-511.69,0.00022191,2]
[367251714,1750716656939,-490.0,0.00022191,2]
[367251715,1750716656950,-490.0,0.00022191,2]
[367251716,1750716656959,-490.0,0.00022191,2]
[367251717,1750716656969,-490.0,0.00022191,2]
[367251718,1750716656979,-490.0,0.00022191,2]
[367251719,1750716656988,-1421.66,0.00022191,2]
[367251720,1750716656999,-512.04769063,0.00022191,2]
[367251721,1750716657008,-490.0,0.00022191,2]
[367251722,1750716657018,-699.76,0.00022191,2]
[367251723,1750716657027,-490.0,0.00022191,2]
[367251724,1750716657037,-490.0,0.00022191,2]
[367251725,1750716657046,-490.0,0.00022191,2]
[367251726,1750716657056,-490.0,0.00022191,2]
[367251727,1750716657066,-177.61458703,0.00022191,2]
[367251728,1750716657075,-500.91,0.00022191,2]
[367251729,1750716657085,-1112.8,0.00022191,2]
[367251730,1750716657095,-490.0,0.00022191,2]
[367251731,1750716657105,-490.0,0.00022191,2]
[367251732,1750716657115,-513.35912697,0.00022191,2]
[367251733,1750716657125,-876.24,0.00022191,2]
[367251734,1750716657134,-490.0,0.00022191,2]
[367251735,1750716657146,-964.11,0.00022191,2]
[367251736,1750716657155,-588.02,0.00022191,2]
[367251737,1750716657165,-613.59,0.00022191,2]
[367251738,1750716657175,-1378.98,0.00022191,2]
[367251739,1750716657184,-647.67,0.00022191,2]
[367251740,1750716657193,-490.0,0.00022191,2]
[367251741,1750716657203,-521.285333,0.00022191,2]
[367251742,1750716657212,-340.64909379,0.00022191,2]
[367251743,1750716657221,-1025.12,0.00022191,2]
[367251744,1750716657231,-945.92,0.00022191,2]
[367251745,1750716657240,-2003.63,0.00022191,2]
[367251746,1750716657250,-490.0,0.00022191,2]
[367251747,1750716657259,-490.0,0.00022191,2]
[367251748,1750716657269,-663.54,0.00022191,2]
[367251749,1750716657278,-490.0,0.00022191,2]
[367251750,1750716657288,-490.0,0.00022191,2]
[367251751,1750716657297,-496.69,0.00022191,2]
[367251752,1750716657307,-1212.37,0.00022191,2]
[367251753,1750716657316,-490.0,0.00022191,2]
[367251754,1750716657326,-293.4876088,0.00022191,2]
[367251755,1750716657335,-490.0,0.00022191,2]
[367251756,1750716657345,-918.35,0.00022191,2]
[367251757,1750716657354,-490.0,0.00022191,2]
[367251758,1750716657363,-490.0,0.00022191,2]
[367251759,1750716657373,-791.05,0.00022191,2]
[367251760,1750716657382,-490.0,0.00022191,2]
[367251761,1750716657679,-997.06,0.00022191,2]
[367251762,1750716657704,-490.0,0.00022191,2]
[367251763,1750716657714,-540.77,0.00022191,2]
[367251764,1750716657723,-1008.38,0.00022191,2]
[367251765,1750716657732,-889.18,0.00022191,2]
[367251766,1750716657743,-490.0,0.00022191,2]
[367251767,1750716657752,-490.0,0.00022191,2]
[367251768,1750716657761,-1285.74,0.00022191,2]
[367251769,1750716657770,-671.86,0.00022191,2]
[367251770,1750716657779,-490.0,0.00022191,2]
[367251771,1750716657789,-490.0,0.00022191,2]
[367251772,1750716657798,-490.0,0.00022191,2]
[367251773,1750716657807,-706.31,0.00022191,2]
[367251774,1750716657817,-490.64439031,0.00022191,2]
[367251775,1750716657827,-800.25,0.00022191,2]
[367251776,1750716657836,-1124.25,0.00022191,2]
[367251777,1750716657845,-490.0,0.00022191,2]
[367251778,1750716657855,-626.57514943,0.00022191,2]
[367251779,1750716657865,-465.35890563,0.00022191,2]
[367251780,1750716657874,-922.43,0.00022191,2]
[367251781,1750716657883,-490.0,0.00022191,2]
[367251782,1750716657894,-497.36196264,0.00022191,2]
[367251783,1750716657903,-490.0,0.00022191,2]
[367251784,1750716657913,-1576.92,0.00022191,2]
[367251785,1750716657922,-785.44,0.00022191,2]
[367251786,1750716657932,-490.0,0.00022191,2]
[367251787,1750716657941,-648.53,0.00022191,2]
[367251788,1750716657951,-490.0,0.00022191,2]
[367251789,1750716657960,-492.72,0.00022191,2]
[367251790,1750716657969,-1861.67,0.00022191,2]
[367251791,1750716657978,-490.0,0.00022191,2]
[367251792,1750716657988,-444.77945503,0.00022191,2]
[367251793,1750716657998,-490.0,0.00022191,2]
[367251794,1750716658007,-490.0,0.00022191,2]
[367251795,1750716658016,-490.0,0.00022191,2]
[367251796,1750716658026,-490.0,0.00022191,2]
[367251797,1750716658035,-490.0,0.00022191,2]
[367251798,1750716658045,-490.0,0.00022191,2]
[367251799,1750716658054,-490.0,0.00022191,2]
[367251800,1750716658064,-490.0,0.00022191,2]
[367251801,1750716658074,-490.0,0.00022191,2]
[367251802,1750716658083,-490.0,0.00022191,2]
[367251803,1750716658093,-490.0,0.00022191,2]
[367251804,1750716658102,-490.0,0.00022191,2]
[367251805,1750716658112,-490.0,0.00022191,2]
[367251806,1750716658121,-490.0,0.00022191,2]
[367251807,1750716658131,-963.19,0.00022191,2]
[367251808,1750716658141,-490.0,0.00022191,2]
[367251809,1750716658150,-183.94010823,0.00022191,2]
[367251810,1750716658160,-490.0,0.00022191,2]
[367251811,1750716658170,-490.0,0.00022191,2]
[367251812,1750716658180,-490.0,0.00022191,2]
[367251813,1750716658189,-1054.11,0.00022191,2]
[367251814,1750716658199,-522.67,0.00022191,2]
[367251815,1750716658209,-150.39110727,0.00022191,2]
[367251816,1750716658218,-490.0,0.00022191,2]
[367251817,1750716658227,-490.0,0.00022191,2]
[367251818,1750716658237,-490.0,0.00022191,2]
[367251819,1750716658246,-490.0,0.00022191,2]
[367251820,1750716658256,-852.78,0.00022191,2]
[367251821,1750716658265,-490.0,0.00022191,2]
[367251822,1750716658275,-490.0,0.00022191,2]
[367251823,1750716658284,-1397.02,0.00022191,2]
[367251824,1750716658293,-834.03,0.00022191,2]
[367251825,1750716658303,-1093.26,0.00022191,2]
[367251826,1750716658312,-5044.99,0.00022191,2]
[367251827,1750716658322,-490.0,0.00022191,2]